[Event "Titled Tuesday Blitz March 21 Late 2023"]
[White "Zhurbinsky, David"]
[Black "drdaro"]
[WhiteFideId "2072904"]
[WhiteElo "2612"]
[BlackElo "2384"]
[Result "1-0"]
[Round "03"]
[TimeControl "180+2"]
[Date "2023.03.21"]
[WhiteClock "0:00:09"]
[BlackClock "0:00:37"]

1. e4 {[%clk 0:03:00]}  g6 {[%clk 0:02:58]} 2. d4 {[%clk 0:03:00]}  Nf6 {[%clk 0:02:58]} 3. e5 {[%clk 0:03:00]}  Nh5 {[%clk 0:02:58]} 4. Nc3 {[%clk 0:02:49]}  d6 {[%clk 0:02:57]} 5. exd6 {[%clk 0:02:44]}  cxd6 {[%clk 0:02:57]} 6. Bc4 {[%clk 0:02:41]}  Bg7 {[%clk 0:02:56]} 7. Nf3 {[%clk 0:02:37]}  O-O {[%clk 0:02:57]} 8. h3 {[%clk 0:02:37]}  Nc6 {[%clk 0:02:55]} 9. Be3 {[%clk 0:02:35]}  a6 {[%clk 0:02:47]} 10. a3 {[%clk 0:02:33]}  b5 {[%clk 0:02:47]} 11. Ba2 {[%clk 0:02:26]}  Bb7 {[%clk 0:02:47]} 12. Qd2 {[%clk 0:02:21]}  b4 {[%clk 0:02:27]} 13. axb4 {[%clk 0:02:19]}  Nxb4 {[%clk 0:02:28]} 14. Bb3 {[%clk 0:02:17]}  Nf6 {[%clk 0:02:20]} 15. Qe2 {[%clk 0:02:08]}  a5 {[%clk 0:02:17]} 16. O-O-O {[%clk 0:01:55]}  Bc6 {[%clk 0:02:03]} 17. d5 {[%clk 0:01:29]}  a4 {[%clk 0:01:53]} 18. Bc4 {[%clk 0:01:16]}  Bd7 {[%clk 0:01:46]} 19. Bd4 {[%clk 0:01:10]}  a3 {[%clk 0:01:42]} 20. bxa3 {[%clk 0:01:09]}  Rxa3 {[%clk 0:01:43]} 21. Kb2 {[%clk 0:00:59]}  Qa5 {[%clk 0:01:37]} 22. Ra1 {[%clk 0:00:58]}  Ra8 {[%clk 0:01:36]} 23. Rab1 {[%clk 0:00:46]}  Nfxd5 {[%clk 0:01:25]} 24. Bxg7 {[%clk 0:00:43]}  Kxg7 {[%clk 0:01:26]} 25. Nxd5 {[%clk 0:00:33]}  Nxd5 {[%clk 0:01:27]} 26. Bxd5 {[%clk 0:00:27]}  Qxd5 {[%clk 0:01:21]} 27. Kc1 {[%clk 0:00:24]}  Bf5 {[%clk 0:01:16]} 28. Qd2 {[%clk 0:00:22]}  Qc5 {[%clk 0:01:05]} 29. Qd4+ {[%clk 0:00:17]}  Qxd4 {[%clk 0:00:52]} 30. Nxd4 {[%clk 0:00:18]}  Be4 {[%clk 0:00:53]} 31. f3 {[%clk 0:00:17]}  Bd5 {[%clk 0:00:54]} 32. Kd2 {[%clk 0:00:17]}  R8a4 {[%clk 0:00:53]} 33. Nb5 {[%clk 0:00:16]}  Ra2 {[%clk 0:00:44]} 34. Nc3 {[%clk 0:00:16]}  Ra5 {[%clk 0:00:44]} 35. Nxa2 {[%clk 0:00:16]}  Rxa2 {[%clk 0:00:45]} 36. Ra1 {[%clk 0:00:15]}  Rb2 {[%clk 0:00:44]} 37. Rhb1 {[%clk 0:00:16]}  Rxb1 {[%clk 0:00:43]} 38. Rxb1 {[%clk 0:00:17]}  Be6 {[%clk 0:00:43]} 39. g4 {[%clk 0:00:14]}  Kf6 {[%clk 0:00:44]} 40. Ke3 {[%clk 0:00:15]}  Ke5 {[%clk 0:00:44]} 41. f4+ {[%clk 0:00:15]}  Kd5 {[%clk 0:00:43]} 42. Kd3 {[%clk 0:00:15]}  h5 {[%clk 0:00:43]} 43. f5 {[%clk 0:00:13]}  gxf5 {[%clk 0:00:43]} 44. gxh5 {[%clk 0:00:14]}  f4 {[%clk 0:00:44]} 45. h6 {[%clk 0:00:08]}  Bxh3 {[%clk 0:00:44]} 46. Rh1 {[%clk 0:00:06]}  Bf5+ {[%clk 0:00:44]} 47. Ke2 {[%clk 0:00:07]}  Bh7 {[%clk 0:00:42]} 48. Kf3 {[%clk 0:00:07]}  e5 {[%clk 0:00:43]} 49. Ke2 {[%clk 0:00:07]}  Ke4 {[%clk 0:00:40]} 50. Ra1 {[%clk 0:00:05]}  Kf5 {[%clk 0:00:40]} 51. Rg1 {[%clk 0:00:05]}  e4 {[%clk 0:00:39]} 52. Rg7 {[%clk 0:00:05]}  Bg6 {[%clk 0:00:33]} 53. h7 {[%clk 0:00:05]}  Bxh7 {[%clk 0:00:34]} 54. Rxh7 {[%clk 0:00:06]}  d5 {[%clk 0:00:33]} 55. Rxf7+ {[%clk 0:00:06]}  Ke5 {[%clk 0:00:34]} 56. c3 {[%clk 0:00:06]}  Ke6 {[%clk 0:00:33]} 57. Rxf4 {[%clk 0:00:05]}  Ke5 {[%clk 0:00:34]} 58. Rh4 {[%clk 0:00:06]}  d4 {[%clk 0:00:34]} 59. cxd4+ {[%clk 0:00:06]}  Kxd4 {[%clk 0:00:35]} 60. Kd2 {[%clk 0:00:07]}  Kd5 {[%clk 0:00:35]} 61. Ke3 {[%clk 0:00:08]}  Ke5 {[%clk 0:00:36]} 62. Rxe4+ {[%clk 0:00:09]}  Kf5 {[%clk 0:00:37]} 63. Rb4 {[%clk 0:00:09]} 1-0


[Site "https://www.chess.com"]

[Event "Titled Tuesday Blitz March 21 Late 2023"]
[White "Petukhov, Dmitry"]
[Black "Mustafayev, Farid"]
[WhiteFideId "4142748"]
[BlackFideId "13408771"]
[WhiteElo "2311"]
[BlackElo "2269"]
[Result "0-1"]
[Round "03"]
[TimeControl "180+2"]
[Date "2023.03.21"]
[WhiteClock "0:00:35"]
[BlackClock "0:00:49"]

1. e4 {[%clk 0:02:59]}  c5 {[%clk 0:02:59]} 2. c3 {[%clk 0:02:59]}  g6 {[%clk 0:02:56]} 3. h4 {[%clk 0:02:58]}  d5 {[%clk 0:02:54]} 4. exd5 {[%clk 0:02:58]}  Qxd5 {[%clk 0:02:55]} 5. d4 {[%clk 0:02:56]}  Bg7 {[%clk 0:02:55]} 6. Be3 {[%clk 0:02:54]}  cxd4 {[%clk 0:02:54]} 7. cxd4 {[%clk 0:02:54]}  Nf6 {[%clk 0:02:54]} 8. Nc3 {[%clk 0:02:53]}  Qd8 {[%clk 0:02:54]} 9. Bb5+ {[%clk 0:02:51]}  Nbd7 {[%clk 0:02:54]} 10. Nf3 {[%clk 0:02:49]}  O-O {[%clk 0:02:53]} 11. Qd2 {[%clk 0:02:42]}  a6 {[%clk 0:02:53]} 12. Be2 {[%clk 0:02:41]}  b5 {[%clk 0:02:51]} 13. h5 {[%clk 0:02:33]}  b4 {[%clk 0:02:37]} 14. Nd1 {[%clk 0:02:23]}  Ne4 {[%clk 0:02:35]} 15. Qd3 {[%clk 0:02:18]}  Ndf6 {[%clk 0:02:34]} 16. hxg6 {[%clk 0:02:17]}  hxg6 {[%clk 0:02:34]} 17. Ne5 {[%clk 0:02:13]}  Bf5 {[%clk 0:02:31]} 18. Qb3 {[%clk 0:02:05]}  Qd6 {[%clk 0:02:01]} 19. g4 {[%clk 0:02:03]}  Be6 {[%clk 0:02:00]} 20. Qd3 {[%clk 0:01:51]}  Bd5 {[%clk 0:01:43]} 21. g5 {[%clk 0:01:48]}  Nd7 {[%clk 0:01:42]} 22. Bf3 {[%clk 0:01:48]}  Nxe5 {[%clk 0:01:36]} 23. dxe5 {[%clk 0:01:47]}  Qxe5 {[%clk 0:01:36]} 24. Qe2 {[%clk 0:01:42]}  Nxg5 {[%clk 0:01:23]} 25. Bxg5 {[%clk 0:01:27]}  Qxg5 {[%clk 0:01:22]} 26. Ne3 {[%clk 0:01:25]}  Bxf3 {[%clk 0:01:21]} 27. Qxf3 {[%clk 0:01:25]}  Rfd8 {[%clk 0:01:19]} 28. Rd1 {[%clk 0:01:20]}  Bxb2 {[%clk 0:01:17]} 29. Rxd8+ {[%clk 0:01:19]}  Rxd8 {[%clk 0:01:18]} 30. Qe2 {[%clk 0:01:10]}  Bc3+ {[%clk 0:01:12]} 31. Kf1 {[%clk 0:01:09]}  Qb5 {[%clk 0:01:02]} 32. Qxb5 {[%clk 0:01:08]}  axb5 {[%clk 0:01:03]} 33. Ke2 {[%clk 0:00:44]}  Rd2+ {[%clk 0:01:02]} 34. Kf3 {[%clk 0:00:44]}  Rxa2 {[%clk 0:01:02]} 35. Rd1 {[%clk 0:00:44]}  e6 {[%clk 0:01:01]} 36. Rd8+ {[%clk 0:00:38]}  Kg7 {[%clk 0:01:01]} 37. Rb8 {[%clk 0:00:39]}  b3 {[%clk 0:00:59]} 38. Rxb5 {[%clk 0:00:39]}  b2 {[%clk 0:00:59]} 39. Nc4 {[%clk 0:00:37]}  Ra1 {[%clk 0:00:50]} 40. Rb3 {[%clk 0:00:35]}  b1=Q {[%clk 0:00:49]} 0-1


[Site "https://www.chess.com"]

[Event "Titled Tuesday Blitz March 21 Late 2023"]
[White "Bogaudinov, Rushan"]
[Black "Ozates, Tuna"]
[WhiteFideId "4129288"]
[BlackFideId "6354521"]
[WhiteElo "1949"]
[BlackElo "2151"]
[Result "0-1"]
[Round "03"]
[TimeControl "180+2"]
[Date "2023.03.21"]
[WhiteClock "0:00:15"]
[BlackClock "0:01:46"]

1. e4 {[%clk 0:03:00]}  e5 {[%clk 0:02:56]} 2. Nc3 {[%clk 0:02:59]}  Nf6 {[%clk 0:02:54]} 3. g3 {[%clk 0:02:59]}  Bc5 {[%clk 0:02:53]} 4. Bg2 {[%clk 0:02:57]}  d6 {[%clk 0:02:53]} 5. h3 {[%clk 0:02:54]}  a6 {[%clk 0:02:52]} 6. Nf3 {[%clk 0:02:50]}  Nc6 {[%clk 0:02:52]} 7. O-O {[%clk 0:02:49]}  h6 {[%clk 0:02:52]} 8. d3 {[%clk 0:02:44]}  Be6 {[%clk 0:02:52]} 9. Be3 {[%clk 0:02:40]}  Qd7 {[%clk 0:02:51]} 10. Kh2 {[%clk 0:02:35]}  g5 {[%clk 0:02:50]} 11. d4 {[%clk 0:02:30]}  exd4 {[%clk 0:02:50]} 12. Nxd4 {[%clk 0:02:29]}  Ne5 {[%clk 0:02:44]} 13. Nd5 {[%clk 0:02:21]}  Bxd5 {[%clk 0:02:43]} 14. exd5 {[%clk 0:02:21]}  O-O-O {[%clk 0:02:41]} 15. b4 {[%clk 0:02:06]}  Bb6 {[%clk 0:02:32]} 16. a4 {[%clk 0:02:01]}  Rdg8 {[%clk 0:02:31]} 17. a5 {[%clk 0:02:01]}  Ba7 {[%clk 0:02:31]} 18. c4 {[%clk 0:01:52]}  h5 {[%clk 0:02:28]} 19. c5 {[%clk 0:01:47]}  h4 {[%clk 0:02:27]} 20. c6 {[%clk 0:01:36]}  hxg3+ {[%clk 0:02:26]} 21. fxg3 {[%clk 0:01:37]}  Qe7 {[%clk 0:02:19]} 22. cxb7+ {[%clk 0:01:34]}  Kxb7 {[%clk 0:02:18]} 23. Kg1 {[%clk 0:01:02]}  Neg4 {[%clk 0:02:11]} 24. Bf2 {[%clk 0:00:56]}  Nxf2 {[%clk 0:02:08]} 25. Rxf2 {[%clk 0:00:56]}  Qe3 {[%clk 0:02:05]} 26. Qc2 {[%clk 0:00:24]}  Bxd4 {[%clk 0:02:02]} 27. Qc6+ {[%clk 0:00:21]}  Kb8 {[%clk 0:02:01]} 28. Rf1 {[%clk 0:00:21]}  Qxg3 {[%clk 0:01:51]} 29. b5 {[%clk 0:00:19]}  Ng4 {[%clk 0:01:46]} 30. hxg4 {[%clk 0:00:15]}  Qh2# {[%clk 0:01:46]} 0-1


[Site "https://www.chess.com"]

[Event "Titled Tuesday Blitz March 21 Late 2023"]
[White "Turayev, Shahruh"]
[Black "Pniaczek, Marek"]
[WhiteFideId "14003856"]
[BlackFideId "21800421"]
[WhiteElo "2171"]
[BlackElo "2138"]
[Result "1-0"]
[Round "03"]
[TimeControl "180+2"]
[Date "2023.03.21"]
[WhiteClock "0:01:33"]
[BlackClock "0:00:13"]

1. e4 {[%clk 0:03:00]}  e5 {[%clk 0:03:00]} 2. Nc3 {[%clk 0:03:00]}  Nf6 {[%clk 0:02:59]} 3. Bc4 {[%clk 0:03:00]}  Nxe4 {[%clk 0:02:59]} 4. Qh5 {[%clk 0:03:00]}  Nd6 {[%clk 0:02:59]} 5. Bb3 {[%clk 0:03:00]}  Nc6 {[%clk 0:02:41]} 6. Nb5 {[%clk 0:02:59]}  g6 {[%clk 0:02:29]} 7. Qf3 {[%clk 0:02:58]}  f5 {[%clk 0:02:05]} 8. Qd5 {[%clk 0:02:58]}  Qg5 {[%clk 0:01:09]} 9. d4 {[%clk 0:02:48]}  Qg4 {[%clk 0:01:08]} 10. dxe5 {[%clk 0:02:35]}  Qb4+ {[%clk 0:00:39]} 11. Nc3 {[%clk 0:02:27]}  Ne7 {[%clk 0:00:34]} 12. Qd1 {[%clk 0:01:48]}  Ne4 {[%clk 0:00:32]} 13. Bd2 {[%clk 0:01:40]}  Nxd2 {[%clk 0:00:32]} 14. Qxd2 {[%clk 0:01:41]}  Bg7 {[%clk 0:00:30]} 15. Nf3 {[%clk 0:01:40]}  d6 {[%clk 0:00:18]} 16. exd6 {[%clk 0:01:39]}  Qxd6 {[%clk 0:00:18]} 17. Qxd6 {[%clk 0:01:36]}  cxd6 {[%clk 0:00:19]} 18. O-O-O {[%clk 0:01:33]}  Bd7 {[%clk 0:00:19]} 19. Rhe1 {[%clk 0:01:32]}  Bf6 {[%clk 0:00:17]} 20. Nd5 {[%clk 0:01:32]}  Rf8 {[%clk 0:00:14]} 21. Nc7+ {[%clk 0:01:32]}  Kd8 {[%clk 0:00:13]} 22. Nxa8 {[%clk 0:01:33]} 1-0


[Site "https://www.chess.com"]

[Event "Titled Tuesday Blitz March 21 Late 2023"]
[White "Rosenberg, Evan S"]
[Black "Sokac, Marko"]
[WhiteFideId "2019299"]
[BlackFideId "14531356"]
[WhiteElo "2335"]
[BlackElo "2355"]
[Result "0-1"]
[Round "03"]
[TimeControl "180+2"]
[Date "2023.03.21"]
[WhiteClock "0:00:05"]
[BlackClock "0:01:50"]

1. d4 {[%clk 0:03:00]}  Nf6 {[%clk 0:03:00]} 2. Nf3 {[%clk 0:03:00]}  e6 {[%clk 0:03:00]} 3. g3 {[%clk 0:03:00]}  b5 {[%clk 0:03:00]} 4. Bg2 {[%clk 0:03:00]}  Bb7 {[%clk 0:03:01]} 5. O-O {[%clk 0:03:00]}  Be7 {[%clk 0:03:01]} 6. Bg5 {[%clk 0:02:58]}  O-O {[%clk 0:03:02]} 7. Qd3 {[%clk 0:02:59]}  Bc6 {[%clk 0:02:48]} 8. Nbd2 {[%clk 0:02:40]}  a5 {[%clk 0:02:43]} 9. e4 {[%clk 0:02:36]}  h6 {[%clk 0:02:42]} 10. Bxf6 {[%clk 0:02:36]}  Bxf6 {[%clk 0:02:43]} 11. e5 {[%clk 0:02:37]}  Be7 {[%clk 0:02:42]} 12. Ne4 {[%clk 0:02:22]}  d6 {[%clk 0:02:35]} 13. Rad1 {[%clk 0:02:05]}  Qc8 {[%clk 0:02:33]} 14. Qe3 {[%clk 0:01:52]}  Qb7 {[%clk 0:02:32]} 15. Rfe1 {[%clk 0:01:46]}  Nd7 {[%clk 0:02:31]} 16. Qf4 {[%clk 0:01:46]}  dxe5 {[%clk 0:02:24]} 17. Nxe5 {[%clk 0:01:33]}  Nxe5 {[%clk 0:02:24]} 18. dxe5 {[%clk 0:01:32]}  Rad8 {[%clk 0:02:20]} 19. Nf6+ {[%clk 0:01:00]}  Bxf6 {[%clk 0:02:15]} 20. Bxc6 {[%clk 0:00:37]}  Qxc6 {[%clk 0:02:16]} 21. exf6 {[%clk 0:00:37]}  g5 {[%clk 0:02:16]} 22. Qc1 {[%clk 0:00:27]}  Qf3 {[%clk 0:02:10]} 23. Rxd8 {[%clk 0:00:16]}  Rxd8 {[%clk 0:02:11]} 24. Qe3 {[%clk 0:00:14]}  Qxf6 {[%clk 0:02:07]} 25. c3 {[%clk 0:00:14]}  Rd5 {[%clk 0:02:02]} 26. a4 {[%clk 0:00:13]}  bxa4 {[%clk 0:02:01]} 27. Qe4 {[%clk 0:00:13]}  Rd2 {[%clk 0:01:58]} 28. Re2 {[%clk 0:00:12]}  Rxe2 {[%clk 0:01:55]} 29. Qxe2 {[%clk 0:00:13]}  Qf5 {[%clk 0:01:54]} 30. Kg2 {[%clk 0:00:10]}  Qd5+ {[%clk 0:01:53]} 31. f3 {[%clk 0:00:10]}  Qb3 {[%clk 0:01:53]} 32. Qa6 {[%clk 0:00:06]}  Qxb2+ {[%clk 0:01:52]} 33. Kh3 {[%clk 0:00:07]}  Qxc3 {[%clk 0:01:51]} 34. Qa8+ {[%clk 0:00:07]}  Kg7 {[%clk 0:01:50]} 35. g4 {[%clk 0:00:05]} 0-1


[Site "https://www.chess.com"]

[Event "Titled Tuesday Blitz March 21 Late 2023"]
[White "rionelG"]
[Black "Ismagilov, Damir"]
[BlackFideId "34199982"]
[WhiteElo "2287"]
[BlackElo "2078"]
[Result "0-1"]
[Round "03"]
[TimeControl "180+2"]
[Date "2023.03.21"]
[WhiteClock "0:00:11"]
[BlackClock "0:00:21"]

1. e4 {[%clk 0:02:33]}  e6 {[%clk 0:02:59]} 2. d3 {[%clk 0:02:31]}  d5 {[%clk 0:02:59]} 3. Nd2 {[%clk 0:02:31]}  Nf6 {[%clk 0:02:58]} 4. g3 {[%clk 0:02:32]}  dxe4 {[%clk 0:02:56]} 5. dxe4 {[%clk 0:02:31]}  e5 {[%clk 0:02:57]} 6. Bg2 {[%clk 0:02:32]}  Nc6 {[%clk 0:02:56]} 7. Ngf3 {[%clk 0:02:32]}  Bc5 {[%clk 0:02:56]} 8. O-O {[%clk 0:02:32]}  O-O {[%clk 0:02:56]} 9. c3 {[%clk 0:02:33]}  a5 {[%clk 0:02:54]} 10. Qc2 {[%clk 0:02:31]}  Qe7 {[%clk 0:02:51]} 11. h3 {[%clk 0:02:31]}  h6 {[%clk 0:02:50]} 12. Re1 {[%clk 0:02:31]}  Be6 {[%clk 0:02:50]} 13. Nf1 {[%clk 0:02:28]}  Rad8 {[%clk 0:02:50]} 14. Be3 {[%clk 0:02:27]}  Bc4 {[%clk 0:02:40]} 15. Bxc5 {[%clk 0:02:26]}  Qxc5 {[%clk 0:02:41]} 16. N3d2 {[%clk 0:02:15]}  Bd3 {[%clk 0:02:38]} 17. Qb3 {[%clk 0:02:12]}  b5 {[%clk 0:02:26]} 18. a4 {[%clk 0:02:08]}  bxa4 {[%clk 0:02:10]} 19. Qxa4 {[%clk 0:01:45]}  Bxf1 {[%clk 0:01:41]} 20. Nxf1 {[%clk 0:01:41]}  h5 {[%clk 0:01:41]} 21. Ne3 {[%clk 0:01:25]}  h4 {[%clk 0:01:38]} 22. Nd5 {[%clk 0:00:41]}  hxg3 {[%clk 0:01:34]} 23. Qxc6 {[%clk 0:00:39]}  gxf2+ {[%clk 0:01:27]} 24. Kh2 {[%clk 0:00:39]}  Rxd5 {[%clk 0:01:16]} 25. exd5 {[%clk 0:00:36]}  Qxc6 {[%clk 0:01:10]} 26. dxc6 {[%clk 0:00:36]}  fxe1=Q {[%clk 0:01:10]} 27. Rxe1 {[%clk 0:00:37]}  e4 {[%clk 0:01:03]} 28. Ra1 {[%clk 0:00:34]}  Rb8 {[%clk 0:00:39]} 29. Rxa5 {[%clk 0:00:31]}  Rxb2 {[%clk 0:00:39]} 30. Ra7 {[%clk 0:00:31]}  Nd5 {[%clk 0:00:34]} 31. Kg3 {[%clk 0:00:31]}  f5 {[%clk 0:00:34]} 32. Bf1 {[%clk 0:00:21]}  Rc2 {[%clk 0:00:25]} 33. Bc4 {[%clk 0:00:19]}  Rxc3+ {[%clk 0:00:25]} 34. Kh4 {[%clk 0:00:16]}  Rxc4 {[%clk 0:00:25]} 35. Kg5 {[%clk 0:00:16]}  Rxc6 {[%clk 0:00:25]} 36. Kxf5 {[%clk 0:00:15]}  Nf6 {[%clk 0:00:25]} 37. h4 {[%clk 0:00:13]}  Kf7 {[%clk 0:00:25]} 38. h5 {[%clk 0:00:12]}  Rc5+ {[%clk 0:00:25]} 39. Kf4 {[%clk 0:00:12]}  Rxh5 {[%clk 0:00:24]} 40. Rxc7+ {[%clk 0:00:11]}  Kg6 {[%clk 0:00:24]} 41. Rc6 {[%clk 0:00:12]}  Rh3 {[%clk 0:00:22]} 42. Rc7 {[%clk 0:00:10]}  Nd5+ {[%clk 0:00:21]} 43. Kg4 {[%clk 0:00:11]}  Nxc7 {[%clk 0:00:21]} 0-1


[Site "https://www.chess.com"]

[Event "Titled Tuesday Blitz March 21 Late 2023"]
[White "Riff, Vincent"]
[Black "Thiel, Thomas"]
[WhiteFideId "617776"]
[BlackFideId "4615964"]
[WhiteElo "2369"]
[BlackElo "2263"]
[Result "1-0"]
[Round "03"]
[TimeControl "180+2"]
[Date "2023.03.21"]
[WhiteClock "0:00:20"]
[BlackClock "0:00:10"]

1. e4 {[%clk 0:02:45]}  d5 {[%clk 0:02:55]} 2. exd5 {[%clk 0:02:43]}  Nf6 {[%clk 0:02:55]} 3. Nf3 {[%clk 0:02:41]}  Nxd5 {[%clk 0:02:54]} 4. Nc3 {[%clk 0:02:42]}  g6 {[%clk 0:02:51]} 5. Bc4 {[%clk 0:02:37]}  Nb6 {[%clk 0:02:50]} 6. Bb3 {[%clk 0:02:36]}  Bg7 {[%clk 0:02:50]} 7. O-O {[%clk 0:02:29]}  O-O {[%clk 0:02:50]} 8. h3 {[%clk 0:02:25]}  Nc6 {[%clk 0:02:48]} 9. d3 {[%clk 0:02:24]}  Nd4 {[%clk 0:02:46]} 10. Re1 {[%clk 0:02:21]}  a5 {[%clk 0:02:41]} 11. Bg5 {[%clk 0:02:17]}  Bf6 {[%clk 0:02:34]} 12. Bh6 {[%clk 0:01:51]}  Bg7 {[%clk 0:02:32]} 13. Bxg7 {[%clk 0:01:50]}  Kxg7 {[%clk 0:02:32]} 14. Nxd4 {[%clk 0:01:50]}  Qxd4 {[%clk 0:02:29]} 15. Rxe7 {[%clk 0:01:49]}  a4 {[%clk 0:02:28]} 16. Bc4 {[%clk 0:01:48]}  Nxc4 {[%clk 0:02:16]} 17. dxc4 {[%clk 0:01:48]}  Qxc4 {[%clk 0:02:15]} 18. Qe1 {[%clk 0:01:43]}  Qd4 {[%clk 0:02:05]} 19. Rd1 {[%clk 0:01:40]}  Qf6 {[%clk 0:02:02]} 20. Nd5 {[%clk 0:01:40]}  Qxb2 {[%clk 0:01:55]} 21. c3 {[%clk 0:01:36]}  Be6 {[%clk 0:01:31]} 22. Qe5+ {[%clk 0:01:26]}  Kh6 {[%clk 0:01:31]} 23. Rd4 {[%clk 0:01:16]}  Qb1+ {[%clk 0:01:24]} 24. Kh2 {[%clk 0:01:15]}  g5 {[%clk 0:01:12]} 25. Qf6+ {[%clk 0:01:08]}  Qg6 {[%clk 0:01:08]} 26. Qe5 {[%clk 0:00:48]}  c6 {[%clk 0:00:53]} 27. Nf6 {[%clk 0:00:47]}  Rad8 {[%clk 0:00:44]} 28. f4 {[%clk 0:00:32]}  Qf5 {[%clk 0:00:40]} 29. Ng4+ {[%clk 0:00:30]}  Kg6 {[%clk 0:00:37]} 30. Rxb7 {[%clk 0:00:23]}  Rxd4 {[%clk 0:00:33]} 31. cxd4 {[%clk 0:00:22]}  Qxf4+ {[%clk 0:00:30]} 32. Qxf4 {[%clk 0:00:22]}  gxf4 {[%clk 0:00:31]} 33. Ne5+ {[%clk 0:00:22]}  Kf5 {[%clk 0:00:30]} 34. a3 {[%clk 0:00:22]}  Ke4 {[%clk 0:00:24]} 35. Nxc6 {[%clk 0:00:22]}  Rc8 {[%clk 0:00:15]} 36. Nb4 {[%clk 0:00:21]}  Kxd4 {[%clk 0:00:13]} 37. Ra7 {[%clk 0:00:21]}  Bb3 {[%clk 0:00:11]} 38. Rd7+ {[%clk 0:00:19]}  Ke3 {[%clk 0:00:10]} 39. Re7+ {[%clk 0:00:20]}  Kf2 {[%clk 0:00:10]} 40. Nd3+ {[%clk 0:00:20]} 1-0


[Site "https://www.chess.com"]

[Event "Titled Tuesday Blitz March 21 Late 2023"]
[White "Torres Dominguez, David"]
[Black "Jeet, Jain"]
[WhiteFideId "2220857"]
[BlackFideId "5073022"]
[WhiteElo "1999"]
[BlackElo "2067"]
[Result "1/2-1/2"]
[Round "03"]
[TimeControl "180+2"]
[Date "2023.03.21"]
[WhiteClock "0:00:21"]
[BlackClock "0:00:57"]

1. e4 {[%clk 0:03:00]}  c6 {[%clk 0:02:59]} 2. Nf3 {[%clk 0:02:59]}  d5 {[%clk 0:02:59]} 3. d3 {[%clk 0:03:00]}  dxe4 {[%clk 0:02:59]} 4. dxe4 {[%clk 0:03:01]}  Qxd1+ {[%clk 0:03:00]} 5. Kxd1 {[%clk 0:03:01]}  Bg4 {[%clk 0:02:59]} 6. Be2 {[%clk 0:03:01]}  Nd7 {[%clk 0:02:59]} 7. Nfd2 {[%clk 0:03:01]}  Bxe2+ {[%clk 0:02:58]} 8. Kxe2 {[%clk 0:03:02]}  O-O-O {[%clk 0:02:59]} 9. Nb3 {[%clk 0:03:01]}  e5 {[%clk 0:02:58]} 10. Be3 {[%clk 0:03:00]}  a6 {[%clk 0:02:54]} 11. N1d2 {[%clk 0:02:59]}  Ngf6 {[%clk 0:02:41]} 12. f3 {[%clk 0:02:57]}  Kc7 {[%clk 0:02:38]} 13. a4 {[%clk 0:02:57]}  h5 {[%clk 0:02:38]} 14. h4 {[%clk 0:02:48]}  Be7 {[%clk 0:02:34]} 15. a5 {[%clk 0:02:26]}  Kc8 {[%clk 0:02:28]} 16. Nc4 {[%clk 0:02:23]}  Ne8 {[%clk 0:02:23]} 17. Bg5 {[%clk 0:02:17]}  Bxg5 {[%clk 0:02:15]} 18. hxg5 {[%clk 0:02:16]}  g6 {[%clk 0:02:14]} 19. g4 {[%clk 0:02:04]}  h4 {[%clk 0:02:08]} 20. Rh2 {[%clk 0:02:01]}  Kc7 {[%clk 0:02:02]} 21. Rah1 {[%clk 0:02:01]}  Ng7 {[%clk 0:02:01]} 22. Rxh4 {[%clk 0:02:00]}  Rxh4 {[%clk 0:02:02]} 23. Rxh4 {[%clk 0:02:00]}  Ne6 {[%clk 0:02:02]} 24. Rh1 {[%clk 0:01:48]}  Nxg5 {[%clk 0:01:57]} 25. Nc1 {[%clk 0:01:38]}  Ne6 {[%clk 0:01:54]} 26. c3 {[%clk 0:01:27]}  Nf4+ {[%clk 0:01:49]} 27. Ke3 {[%clk 0:01:26]}  b5 {[%clk 0:01:43]} 28. axb6+ {[%clk 0:01:26]}  Kb7 {[%clk 0:01:38]} 29. Rh7 {[%clk 0:01:03]}  Rf8 {[%clk 0:01:32]} 30. Nxe5 {[%clk 0:00:56]}  Ng2+ {[%clk 0:01:22]} 31. Kf2 {[%clk 0:00:55]}  Nxe5 {[%clk 0:01:21]} 32. Kxg2 {[%clk 0:00:55]}  Kxb6 {[%clk 0:01:17]} 33. g5 {[%clk 0:00:55]}  Nc4 {[%clk 0:01:17]} 34. b3 {[%clk 0:00:50]}  Ne3+ {[%clk 0:01:13]} 35. Kg3 {[%clk 0:00:44]}  c5 {[%clk 0:01:12]} 36. Kf4 {[%clk 0:00:39]}  Nd1 {[%clk 0:01:11]} 37. c4 {[%clk 0:00:39]}  Ka5 {[%clk 0:01:08]} 38. Nd3 {[%clk 0:00:38]}  Kb6 {[%clk 0:01:07]} 39. Ne5 {[%clk 0:00:33]}  Rd8 {[%clk 0:00:57]} 40. Rxf7 {[%clk 0:00:27]}  Nf2 {[%clk 0:00:57]} 41. Rf6+ {[%clk 0:00:26]}  Kb7 {[%clk 0:00:58]} 42. Rf7+ {[%clk 0:00:21]}  Kb6 {[%clk 0:00:57]} 43. Rf6+ {[%clk 0:00:21]}  Kb7 {[%clk 0:00:57]} 44. Rf7+ {[%clk 0:00:21]}  Kb6 {[%clk 0:00:57]} 1/2-1/2


[Site "https://www.chess.com"]

[Event "Titled Tuesday Blitz March 21 Late 2023"]
[White "Ezat, Mohamed"]
[Black "Cueto, Jonny"]
[WhiteFideId "10600906"]
[BlackFideId "3300145"]
[WhiteElo "2386"]
[BlackElo "2234"]
[Result "1-0"]
[Round "03"]
[TimeControl "180+2"]
[Date "2023.03.21"]
[WhiteClock "0:00:07"]
[BlackClock "0:00:04"]

1. d4 {[%clk 0:02:58]}  e6 {[%clk 0:03:00]} 2. c4 {[%clk 0:02:58]}  Nf6 {[%clk 0:03:00]} 3. Nc3 {[%clk 0:02:58]}  Bb4 {[%clk 0:02:58]} 4. e3 {[%clk 0:02:37]}  O-O {[%clk 0:02:56]} 5. a3 {[%clk 0:02:36]}  Be7 {[%clk 0:02:53]} 6. b4 {[%clk 0:02:34]}  d5 {[%clk 0:02:52]} 7. c5 {[%clk 0:02:33]}  b6 {[%clk 0:02:14]} 8. Bd3 {[%clk 0:02:28]}  a5 {[%clk 0:02:11]} 9. Bd2 {[%clk 0:02:28]}  c6 {[%clk 0:01:37]} 10. Nf3 {[%clk 0:02:19]}  Ba6 {[%clk 0:01:20]} 11. Bxa6 {[%clk 0:02:16]}  Rxa6 {[%clk 0:01:17]} 12. O-O {[%clk 0:02:12]}  b5 {[%clk 0:01:13]} 13. a4 {[%clk 0:02:03]}  axb4 {[%clk 0:01:10]} 14. Na2 {[%clk 0:02:02]}  Rxa4 {[%clk 0:01:08]} 15. Nxb4 {[%clk 0:02:02]}  Rxa1 {[%clk 0:01:01]} 16. Qxa1 {[%clk 0:02:01]}  Qc7 {[%clk 0:01:01]} 17. Qa8 {[%clk 0:01:58]}  Nfd7 {[%clk 0:00:57]} 18. Ra1 {[%clk 0:01:55]}  Qc8 {[%clk 0:00:32]} 19. Ra7 {[%clk 0:01:47]}  Bf6 {[%clk 0:00:32]} 20. Bc3 {[%clk 0:01:43]}  Re8 {[%clk 0:00:30]} 21. g4 {[%clk 0:01:30]}  h6 {[%clk 0:00:30]} 22. h4 {[%clk 0:01:29]}  g6 {[%clk 0:00:27]} 23. g5 {[%clk 0:01:27]}  hxg5 {[%clk 0:00:26]} 24. hxg5 {[%clk 0:01:25]}  Bg7 {[%clk 0:00:27]} 25. Qb7 {[%clk 0:00:58]}  Qd8 {[%clk 0:00:20]} 26. Nxc6 {[%clk 0:00:56]}  Nxc6 {[%clk 0:00:19]} 27. Qxc6 {[%clk 0:00:56]}  Nf8 {[%clk 0:00:13]} 28. Ba5 {[%clk 0:00:54]}  Qc8 {[%clk 0:00:07]} 29. Qxb5 {[%clk 0:00:40]}  e5 {[%clk 0:00:07]} 30. Kf1 {[%clk 0:00:10]}  e4 {[%clk 0:00:04]} 31. Ne5 {[%clk 0:00:09]}  Qh3+ {[%clk 0:00:04]} 32. Ke1 {[%clk 0:00:08]}  Rc8 {[%clk 0:00:04]} 33. Qb7 {[%clk 0:00:07]}  Re8 {[%clk 0:00:03]} 34. Qxf7+ {[%clk 0:00:07]}  Kh8 {[%clk 0:00:04]} 35. Qxg7# {[%clk 0:00:07]} 1-0


[Site "https://www.chess.com"]